[Event "44th Chess Olympiad Open 2022"]
[Site "Chennai"]
[Date "2022.08.09"]
[Round "11.46"]
[White "Arias Santana, Mauricio"]
[Black "Kulpruethanon, Thanadon"]
[Result "1/2-1/2"]
[ECO "C85"]
[WhiteElo "2318"]
[BlackElo "2294"]
[Annotator "RC"]
[PlyCount "63"]
[EventDate "2022.07.29"]
[EventType "team-tourn"]
[EventCountry "IND"]
[SourceTitle "playchess.com"]
[Source "ChessBase"]
[SourceQuality "1"]
[WhiteTeam "Costa Rica"]
[BlackTeam "Thailand"]
[WhiteTeamCountry "CRI"]
[BlackTeamCountry "THA"]
[TimeControl "40/5400+30:1800+30"]

1. e4 {[%emt 0:00:11]} e5 {[%emt 0:00:08]} 2. Nf3 {[%emt 0:00:02]} Nc6 {[%emt 0:00:07]} 3. Bb5 {[%emt 0:00:03]} a6 {[%emt 0:00:07]} 4. Ba4 {[%emt 0:00:01]} Nf6 {[%emt 0:00:13]} 5. O-O {[%emt 0:00:03]} Be7 {[%emt 0:00:28]} 6. Bxc6 {[%emt 0:00:03]} dxc6 {[%emt 0:00:38]} 7. d3 {[%emt 0:00:03]} Nd7 {[%emt 0:08:10]} 8. Nbd2 {[%emt 0:00:46]} O-O {[%emt 0:01:04]} 9. Nc4 {[%emt 0:00:02]} f6 {[%emt 0:02:30]} 10. Nh4 {[%emt 0:00:18]} g6 {[%emt 0:01:45]} 11. Bh6 {[%emt 0:00:02]} Rf7 {[%emt 0:01:00]} 12. Nf3 {[%emt 0:00:14]} Nf8 {[%emt 0:06:10]} 13. Kh1 {[%emt 0:03:06]} Ne6 {[%emt 0:04:41]} 14. Qd2 {[%emt 0:05:11]} b6 {[%emt 0:02:21]} 15. Rad1 {[%emt 0:04:51]} a5 {[%emt 0:01:28]} 16. a4 {[%emt 0:00:40]} Qe8 {[%emt 0:09:29]} 17. b3 {[%emt 0:02:38]} Ba6 {[%emt 0:03:19]} 18. Ne3 {[%emt 0:08:56]} Rd8 {[%emt 0:00:34]} 19. g3 {[%emt 0:01:49]} Bc8 {[%emt 0:04:40]} 20. Kg2 {[%emt 0:15:40]} Bb7 {[%emt 0:07:07]} 21. Qe2 {[%emt 0:11:53]} Bf8 {[%emt 0:13:13]} 22. Bxf8 {[%emt 0:00:57]} Qxf8 {[%emt 0:00:14]} 23. h4 {[%emt 0:03:18]} h5 {[%emt 0:03:10]} 24. Kh2 {[%emt 0:00:17]} Qg7 {[%emt 0:01:20]} 25. Nc4 {[%emt 0:00:35]} Bc8 {[%emt 0:03:45]} 26. Qe3 {[%emt 0:01:48]} c5 {[%emt 0:01:40]} 27. c3 {[%emt 0:02:51]} Rfd7 {[%emt 0:00:18]} 28. Rd2 {[%emt 0:00:12]} Ba6 {[%emt 0:01:55]} 29. Rfd1 {[%emt 0:02:35]} Bxc4 {[%emt 0:03:55]} 30. dxc4 {[%emt 0:00:32]} Rxd2 {[%emt 0:01:47]} 31. Rxd2 {[%emt 0:00:03]} Rxd2 {[%emt 0:00:39]} 32. Qxd2 {[%emt 0:00:16]} 1/2-1/2

[Event "44th Chess Olympiad Open 2022"]
[Site "Chennai"]
[Date "2022.08.09"]
[Round "11.46"]
[White "Laohawirapap, Prin"]
[Black "Cabezas Solano, David Alejandro"]
[Result "1/2-1/2"]
[ECO "B33"]
[WhiteElo "2230"]
[BlackElo "2196"]
[Annotator "RC"]
[PlyCount "39"]
[EventDate "2022.07.29"]
[EventType "team-tourn"]
[EventCountry "IND"]
[SourceTitle "playchess.com"]
[Source "ChessBase"]
[SourceQuality "1"]
[WhiteTeam "Thailand"]
[BlackTeam "Costa Rica"]
[WhiteTeamCountry "THA"]
[BlackTeamCountry "CRI"]
[TimeControl "40/5400+30:1800+30"]

1. e4 {[%emt 0:00:03]} c5 {[%emt 0:00:04]} 2. Nf3 {[%emt 0:00:04]} Nc6 {[%emt 0:00:06]} 3. d4 {[%emt 0:00:04]} cxd4 {[%emt 0:00:05]} 4. Nxd4 {[%emt 0:00:07]} Nf6 {[%emt 0:00:04]} 5. Nc3 {[%emt 0:00:07]} e5 {[%emt 0:00:03]} 6. Ndb5 {[%emt 0:00:04]} d6 {[%emt 0:00:07]} 7. Nd5 {[%emt 0:00:05]} Nxd5 {[%emt 0:00:05]} 8. exd5 {[%emt 0:00:04]} Ne7 {[%emt 0:00:05]} 9. c4 {[%emt 0:00:03]} Ng6 {[%emt 0:00:14]} 10. Qa4 {[%emt 0:00:08]} Bd7 {[%emt 0:00:07]} 11. Qb4 {[%emt 0:00:08]} Qb8 {[%emt 0:00:24]} 12. Be3 {[%emt 0:00:57]} a6 {[%emt 0:04:48]} 13. Nc3 {[%emt 0:00:26]} f5 {[%emt 0:02:03]} 14. f3 {[%emt 0:11:37]} Be7 {[%emt 0:06:51]} 15. Na4 {[%emt 0:02:40]} Qc7 {[%emt 0:01:49]} 16. Bb6 {[%emt 0:04:00]} Qc8 {[%emt 0:06:04]} 17. Bf2 {[%emt 0:16:17]} Qc7 {[%emt 0:08:08]} 18. Bb6 {[%emt 0:06:42]} Qc8 {[%emt 0:00:13]} 19. Bf2 {[%emt 0:03:23]} Qc7 {[%emt 0:02:28]} 20. Bb6 {[%emt 0:00:08]} 1/2-1/2

[Event "44th Chess Olympiad Open 2022"]
[Site "Chennai"]
[Date "2022.08.09"]
[Round "11.46"]
[White "Chaves Sanchez, Gabriel A"]
[Black "Arunnuntapanich, Tinnakrit"]
[Result "1/2-1/2"]
[ECO "B50"]
[WhiteElo "2125"]
[BlackElo "2117"]
[Annotator "NA RC"]
[PlyCount "63"]
[EventDate "2022.07.29"]
[EventType "team-tourn"]
[EventCountry "IND"]
[SourceTitle "playchess.com"]
[Source "ChessBase"]
[SourceQuality "1"]
[WhiteTeam "Costa Rica"]
[BlackTeam "Thailand"]
[WhiteTeamCountry "CRI"]
[BlackTeamCountry "THA"]
[TimeControl "40/5400+30:1800+30"]

1. e4 {[%emt 0:00:08]} c5 {[%emt 0:00:04]} 2. Nf3 {[%emt 0:00:05]} d6 {[%emt 0:00:06]} 3. c3 {[%emt 0:00:04]} Nf6 {[%emt 0:00:07]} 4. Bd3 {[%emt 0:00:16]} g6 {[%emt 0:04:43]} 5. h3 {[%emt 0:00:04]} Bg7 {[%emt 0:00:04]} 6. Bc2 {[%emt 0:00:44]} O-O {[%emt 0:01:31]} 7. O-O {[%emt 0:01:49]} Nc6 {[%emt 0:01:37]} 8. d4 {[%emt 0:01:35]} cxd4 {[%emt 0:00:47]} 9. cxd4 {[%emt 0:00:05]} Nb4 {[%emt 0:00:26]} 10. Bb3 {[%emt 0:00:37]} d5 {[%emt 0:06:42]} 11. e5 {[%emt 0:04:48]} Ne4 {[%emt 0:00:23]} 12. Be3 {[%emt 0:06:56]} b6 {[%emt 0:18:59]} 13. a3 {[%emt 0:10:36]} Nc6 {[%emt 0:00:37]} 14. Nbd2 {[%emt 0:01:08]} Ba6 {[%emt 0:04:57]} 15. Re1 {[%emt 0:00:39]} Nxd2 {[%emt 0:02:35]} 16. Bxd2 {[%emt 0:10:33]} e6 {[%emt 0:13:31]} 17. Ba4 {[%emt 0:03:58]} b5 {[%emt 0:07:09]} 18. Bc2 {[%emt 0:00:38]} Qb6 {[%emt 0:00:26]} 19. Bc3 {[%emt 0:02:44]} Rfc8 {[%emt 0:01:08]} 20. Qd2 {[%emt 0:00:39]} Bb7 {[%emt 0:00:57]} 21. Bd3 {[%emt 0:10:50]} Bf8 {[%emt 0:04:24]} 22. b4 {[%emt 0:04:19]} a6 {[%emt 0:02:08]} 23. Qb2 {[%emt 0:02:33]} Rc7 {[%emt 0:00:46]} 24. Bd2 {[%emt 0:00:37]} Rac8 {[%emt 0:00:55]} 25. Rec1 {[%emt 0:00:54]} Ne7 {[%emt 0:01:02]} 26. Nh2 {[%emt 0:02:00]} Nf5 {[%emt 0:01:47]} 27. Bxf5 {[%emt 0:01:25]} exf5 {[%emt 0:00:31]} 28. Nf3 {[%emt 0:00:33]} Rc4 {[%emt 0:00:09]} 29. Be3 {[%emt 0:01:34]} Qc7 {[%emt 0:03:03]} 30. Ne1 {[%emt 0:00:41]} Bc6 {[%emt 0:04:06]} 31. Nd3 {[%emt 0:00:44]} a5 {[%emt 0:00:19]} 32. Nc5 {[%emt 0:02:58]} 1/2-1/2

[Event "44th Chess Olympiad Open 2022"]
[Site "Chennai"]
[Date "2022.08.09"]
[Round "11.46"]
[White "Saeheng, Boonsueb"]
[Black "Chinchilla Miranda, Eugenio"]
[Result "0-1"]
[ECO "E01"]
[WhiteElo "2063"]
[BlackElo "2206"]
[Annotator "RC"]
[PlyCount "100"]
[EventDate "2022.07.29"]
[EventType "team-tourn"]
[EventCountry "IND"]
[SourceTitle "playchess.com"]
[Source "ChessBase"]
[SourceQuality "1"]
[WhiteTeam "Thailand"]
[BlackTeam "Costa Rica"]
[WhiteTeamCountry "THA"]
[BlackTeamCountry "CRI"]
[TimeControl "40/5400+30:1800+30"]

1. d4 {[%emt 0:00:05]} d5 {[%emt 0:00:14]} 2. c4 {[%emt 0:00:09]} e6 {[%emt 0:00:04]} 3. Nf3 {[%emt 0:00:43]} Nf6 {[%emt 0:00:07]} 4. g3 {[%emt 0:00:54]} Bb4+ {[%emt 0:00:14]} 5. Bd2 {[%emt 0:00:13]} Bd6 {[%emt 0:00:05]} 6. Bg2 {[%emt 0:06:06]} O-O {[%emt 0:02:03]} 7. O-O {[%emt 0:06:13]} Nbd7 {[%emt 0:00:16]} 8. Qc2 {[%emt 0:00:55]} c6 {[%emt 0:04:12]} 9. Bg5 {[%emt 0:04:07]} h6 {[%emt 0:00:15]} 10. Bxf6 {[%emt 0:00:10]} Nxf6 {[%emt 0:00:03]} 11. Nbd2 {[%emt 0:00:20]} b6 {[%emt 0:00:20]} 12. e4 {[%emt 0:05:16]} Be7 {[%emt 0:00:13]} 13. e5 {[%emt 0:06:32]} Nd7 {[%emt 0:00:09]} 14. cxd5 {[%emt 0:01:11]} cxd5 {[%emt 0:00:04]} 15. Rfc1 {[%emt 0:00:17]} Nb8 {[%emt 0:00:53]} 16. Bf1 {[%emt 0:06:30]} Bd7 {[%emt 0:00:47]} 17. a3 {[%emt 0:07:00]} Nc6 {[%emt 0:01:00]} 18. Ba6 {[%emt 0:02:54]} Qb8 {[%emt 0:02:37]} 19. Qd3 {[%emt 0:01:31]} b5 {[%emt 0:14:15]} 20. Qxb5 {[%emt 0:04:58]} Qxb5 {[%emt 0:05:32]} 21. Bxb5 {[%emt 0:00:07]} Nxe5 {[%emt 0:00:40]} 22. Bxd7 {[%emt 0:03:39]} Nxd7 {[%emt 0:00:04]} 23. Rc7 {[%emt 0:00:10]} Rfd8 {[%emt 0:00:45]} 24. b4 {[%emt 0:02:52]} Bd6 {[%emt 0:01:42]} 25. Rc6 {[%emt 0:01:41]} Nb6 {[%emt 0:00:49]} 26. Rac1 {[%emt 0:02:54]} Kf8 {[%emt 0:01:36]} 27. Nb3 {[%emt 0:01:53]} Rac8 {[%emt 0:14:08]} 28. Rxc8 {[%emt 0:08:32]} Rxc8 {[%emt 0:00:13]} 29. Nc5 {[%emt 0:00:07]} Nc4 {[%emt 0:03:53]} 30. Nb7 {[%emt 0:01:36]} Ke7 {[%emt 0:02:25]} 31. Nd2 {[%emt 0:02:41]} e5 {[%emt 0:09:59]} 32. dxe5 {[%emt 0:10:51]} Bxe5 {[%emt 0:00:48]} 33. Nxc4 {[%emt 0:02:38]} Rxc4 {[%emt 0:01:39]} 34. Re1 {[%emt 0:02:50]} Kf6 {[%emt 0:01:29]} 35. Re2 {[%emt 0:01:15]} Bd4 {[%emt 0:06:15]} 36. Kg2 {[%emt 0:01:16]} Bb6 {[%emt 0:05:37]} 37. Nd6 {[%emt 0:01:46]} Rc6 {[%emt 0:02:14]} 38. Ne8+ {[%emt 0:00:45]} Kg6 {[%emt 0:00:12]} 39. f4 {[%emt 0:00:56]} d4 {[%emt 0:02:07]} 40. Re5 {[%emt 0:03:01]} Rc2+ {[%emt 0:04:07]} 41. Kh3 {[%emt 0:03:39]} d3 {[%emt 0:11:16]} 42. Rd5 {[%emt 0:00:34]} Rc8 {[%emt 0:10:53]} 43. Nd6 {[%emt 0:06:35]} Rd8 {[%emt 0:00:21]} 44. Nf5 {[%emt 0:02:33]} Rxd5 {[%emt 0:00:12]} 45. Ne7+ {[%emt 0:00:05]} Kf6 {[%emt 0:00:15]} 46. Nxd5+ {[%emt 0:00:04]} Ke6 {[%emt 0:00:20]} 47. Nc3 {[%emt 0:00:16]} Bd4 {[%emt 0:00:32]} 48. Nd1 {[%emt 0:00:13]} Kd5 {[%emt 0:05:58]} 49. Kg2 {[%emt 0:00:15]} Kc4 {[%emt 0:01:33]} 50. Kf3 {[%emt 0:00:14]} f5 {[%emt 0:00:25]} 0-1

[Event "44th Chess Olympiad Open 2022"]
[Site "Chennai"]
[Date "2022.08.09"]
[Round "11.47"]
[White "Wong, Yinn Long"]
[Black "Isaakidis, Alexandros"]
[Result "1/2-1/2"]
[ECO "B10"]
[WhiteElo "2381"]
[BlackElo "2165"]
[Annotator "RC"]
[PlyCount "173"]
[EventDate "2022.07.29"]
[EventType "team-tourn"]
[EventCountry "IND"]
[SourceTitle "playchess.com"]
[Source "ChessBase"]
[SourceQuality "1"]
[WhiteTeam "Malaysia"]
[BlackTeam "Cyprus"]
[WhiteTeamCountry "MAS"]
[BlackTeamCountry "CYP"]
[TimeControl "40/5400+30:1800+30"]

1. e4 {[%emt 0:00:07]} c6 {[%emt 0:00:08]} 2. Nf3 {[%emt 0:00:52]} d5 {[%emt 0:00:09]} 3. d3 {[%emt 0:00:14]} g6 {[%emt 0:00:57]} 4. Qe2 {[%emt 0:00:35]} Bg7 {[%emt 0:00:10]} 5. g3 {[%emt 0:00:12]} dxe4 {[%emt 0:03:52]} 6. dxe4 {[%emt 0:00:07]} e5 {[%emt 0:00:35]} 7. Bg2 {[%emt 0:00:34]} Ne7 {[%emt 0:02:19]} 8. O-O {[%emt 0:01:38]} O-O {[%emt 0:00:09]} 9. b3 {[%emt 0:03:23]} Qc7 {[%emt 0:06:57]} 10. Rd1 {[%emt 0:06:58]} b6 {[%emt 0:07:28]} 11. Ba3 {[%emt 0:05:09]} c5 {[%emt 0:05:32]} 12. Nbd2 {[%emt 0:06:49]} Ba6 {[%emt 0:03:36]} 13. Qe3 {[%emt 0:05:42]} Nbc6 {[%emt 0:00:11]} 14. c3 {[%emt 0:00:13]} Rad8 {[%emt 0:15:08]} 15. Bf1 {[%emt 0:02:36]} Bxf1 {[%emt 0:01:08]} 16. Nxf1 {[%emt 0:02:06]} Rxd1 {[%emt 0:02:05]} 17. Rxd1 {[%emt 0:00:01]} Rd8 {[%emt 0:00:36]} 18. Qe2 {[%emt 0:00:23]} Bh6 {[%emt 0:01:50]} 19. Rd3 {[%emt 0:04:28]} Rxd3 {[%emt 0:09:31]} 20. Qxd3 {[%emt 0:00:03]} Qd8 {[%emt 0:00:38]} 21. Qe2 {[%emt 0:05:24]} Qd7 {[%emt 0:05:32]} 22. Kg2 {[%emt 0:01:29]} Kg7 {[%emt 0:12:43]} 23. Bb2 {[%emt 0:07:00]} Kf8 {[%emt 0:04:48]} 24. Ne3 {[%emt 0:06:35]} Bxe3 {[%emt 0:01:08]} 25. Qxe3 {[%emt 0:00:01]} f6 {[%emt 0:00:51]} 26. Nd2 {[%emt 0:02:54]} Kf7 {[%emt 0:04:24]} 27. Qe2 {[%emt 0:01:04]} Nc8 {[%emt 0:05:06]} 28. Nc4 {[%emt 0:03:18]} N6e7 {[%emt 0:03:01]} 29. f3 {[%emt 0:04:26]} Ke8 {[%emt 0:01:53]} 30. Ne3 {[%emt 0:00:18]} Kf7 {[%emt 0:01:37]} 31. a3 {[%emt 0:05:22]} Qe6 {[%emt 0:00:39]} 32. b4 {[%emt 0:00:01]} Qa2 {[%emt 0:01:01]} 33. Nc4 {[%emt 0:13:38]} b5 {[%emt 0:00:20]} 34. Ne3 {[%emt 0:02:00]} c4 {[%emt 0:00:25]} 35. Qd2 {[%emt 0:04:05]} Nb6 {[%emt 0:00:19]} 36. Bc1 {[%emt 0:03:55]} Qa1 {[%emt 0:00:01]} 37. Qc2 {[%emt 0:02:36]} Na4 {[%emt 0:00:33]} 38. Nd1 {[%emt 0:00:20]} Nc6 {[%emt 0:00:44]} 39. Qd2 {[%emt 0:01:06]} Ne7 {[%emt 0:00:35]} 40. Qc2 {[%emt 0:00:42]} Nc6 {[%emt 0:00:26]} 41. f4 {[%emt 0:07:17]} Ke8 {[%emt 0:07:43]} 42. Kh3 {[%emt 0:01:58]} Kf7 {[%emt 0:13:50]} 43. Qd2 {[%emt 0:01:57]} Ne7 {[%emt 0:03:26]} 44. fxe5 {[%emt 0:00:54]} fxe5 {[%emt 0:00:02]} 45. Qc2 {[%emt 0:00:05]} Ke6 {[%emt 0:02:34]} 46. Bg5 {[%emt 0:04:15]} Nb6 {[%emt 0:01:40]} 47. Bc1 {[%emt 0:07:36]} Nd7 {[%emt 0:00:35]} 48. Nf2 {[%emt 0:01:13]} Nf6 {[%emt 0:00:23]} 49. Kg2 {[%emt 0:00:40]} Nc8 {[%emt 0:02:09]} 50. Bg5 {[%emt 0:05:10]} Qe1 {[%emt 0:01:00]} 51. Bxf6 {[%emt 0:00:53]} Kxf6 {[%emt 0:00:02]} 52. a4 {[%emt 0:00:04]} a6 {[%emt 0:03:04]} 53. axb5 {[%emt 0:00:11]} axb5 {[%emt 0:00:01]} 54. Qd1 {[%emt 0:05:22]} Qxd1 {[%emt 0:01:12]} 55. Nxd1 {[%emt 0:00:25]} Ne7 {[%emt 0:00:14]} 56. Ne3 {[%emt 0:00:12]} h5 {[%emt 0:00:24]} 57. Kf3 {[%emt 0:00:43]} Ke6 {[%emt 0:00:53]} 58. g4 {[%emt 0:00:33]} hxg4+ {[%emt 0:00:32]} 59. Kxg4 {[%emt 0:00:28]} Nc8 {[%emt 0:00:39]} 60. h4 {[%emt 0:01:29]} Nd6 {[%emt 0:00:05]} 61. Kf3 {[%emt 0:00:08]} Kf7 {[%emt 0:00:14]} 62. Ng4 {[%emt 0:00:12]} Ke6 {[%emt 0:00:07]} 63. Nf2 {[%emt 0:00:26]} Kf6 {[%emt 0:00:17]} 64. Kg4 {[%emt 0:00:13]} Nf7 {[%emt 0:00:32]} 65. Kf3 {[%emt 0:00:21]} Nd6 {[%emt 0:00:14]} 66. Kg4 {[%emt 0:00:00]} Nf7 {[%emt 0:00:11]} 67. Nh3 {[%emt 0:00:54]} Nh6+ {[%emt 0:00:23]} 68. Kg3 {[%emt 0:00:23]} Nf7 {[%emt 0:01:04]} 69. Kf3 {[%emt 0:00:02]} Ke6 {[%emt 0:00:10]} 70. Nf2 {[%emt 0:00:26]} Kf6 {[%emt 0:01:14]} 71. Nd1 {[%emt 0:00:31]} Nd6 {[%emt 0:00:57]} 72. Ne3 {[%emt 0:00:01]} Kf7 {[%emt 0:00:44]} 73. Nf1 {[%emt 0:00:20]} Ke6 {[%emt 0:00:18]} 74. Ng3 {[%emt 0:00:05]} Kf6 {[%emt 0:00:21]} 75. Kg4 {[%emt 0:00:00]} Nf7 {[%emt 0:00:55]} 76. Nh1 {[%emt 0:00:54]} Nd6 {[%emt 0:00:12]} 77. Nf2 {[%emt 0:00:02]} Nf7 {[%emt 0:00:17]} 78. h5 {[%emt 0:01:30]} gxh5+ {[%emt 0:00:45]} 79. Kxh5 {[%emt 0:00:03]} Nd6 {[%emt 0:00:12]} 80. Kh6 {[%emt 0:00:38]} Nf7+ {[%emt 0:00:22]} 81. Kh5 {[%emt 0:01:34]} Nd6 {[%emt 0:00:02]} 82. Kh6 {[%emt 0:00:06]} Nf7+ {[%emt 0:00:11]} 83. Kh7 {[%emt 0:07:45]} Ng5+ 84. Kg8 Nf3 {[%emt 0:00:01]} 85. Kf8 Ke6 86. Kg8 {[%emt 0:00:04]} Kf6 {[%emt 0:00:01]} 87. Kh7 1/2-1/2

[Event "44th Chess Olympiad Open 2022"]
[Site "Chennai"]
[Date "2022.08.09"]
[Round "11.47"]
[White "Michaelides, Konstantinos"]
[Black "Lim, Zhuo Ren"]
[Result "1/2-1/2"]
[ECO "E04"]
[WhiteElo "2300"]
[BlackElo "2318"]
[Annotator "RC"]
[PlyCount "71"]
[EventDate "2022.07.29"]
[EventType "team-tourn"]
[EventCountry "IND"]
[SourceTitle "playchess.com"]
[Source "ChessBase"]
[SourceQuality "1"]
[WhiteTeam "Cyprus"]
[BlackTeam "Malaysia"]
[WhiteTeamCountry "CYP"]
[BlackTeamCountry "MAS"]
[TimeControl "40/5400+30:1800+30"]

1. d4 {[%emt 0:00:08]} Nf6 {[%emt 0:00:32]} 2. Nf3 {[%emt 0:00:43]} d5 {[%emt 0:00:37]} 3. c4 {[%emt 0:00:23]} e6 {[%emt 0:00:40]} 4. g3 {[%emt 0:00:22]} dxc4 {[%emt 0:00:45]} 5. Bg2 {[%emt 0:00:10]} a6 {[%emt 0:00:06]} 6. O-O {[%emt 0:00:32]} Nc6 {[%emt 0:00:06]} 7. e3 {[%emt 0:00:24]} Rb8 {[%emt 0:00:46]} 8. Qe2 {[%emt 0:00:15]} b5 {[%emt 0:00:59]} 9. b3 {[%emt 0:00:08]} cxb3 {[%emt 0:00:40]} 10. axb3 {[%emt 0:00:03]} Bb7 {[%emt 0:04:57]} 11. Ne5 {[%emt 0:01:25]} Nxe5 {[%emt 0:04:21]} 12. Bxb7 {[%emt 0:00:08]} Rxb7 {[%emt 0:00:06]} 13. dxe5 {[%emt 0:00:05]} Nd5 {[%emt 0:01:01]} 14. e4 {[%emt 0:03:06]} Nb4 {[%emt 0:01:33]} 15. Rd1 {[%emt 0:03:04]} Qc8 {[%emt 0:01:27]} 16. Bg5 {[%emt 0:08:12]} Be7 {[%emt 0:06:18]} 17. Bxe7 {[%emt 0:05:15]} Kxe7 {[%emt 0:00:04]} 18. Qd2 {[%emt 0:03:35]} c5 {[%emt 0:01:05]} 19. Qg5+ {[%emt 0:04:10]} Ke8 {[%emt 0:00:05]} 20. Qxg7 {[%emt 0:03:19]} Rf8 {[%emt 0:00:03]} 21. Qxh7 {[%emt 0:01:48]} Rd7 {[%emt 0:01:20]} 22. Nc3 {[%emt 0:08:42]} Nd3 {[%emt 0:01:19]} 23. Qg7 {[%emt 0:09:36]} b4 {[%emt 0:05:21]} 24. Na4 {[%emt 0:11:29]} Qc6 {[%emt 0:01:36]} 25. h4 {[%emt 0:13:35]} c4 {[%emt 0:03:34]} 26. bxc4 {[%emt 0:02:14]} Qxe4 {[%emt 0:02:47]} 27. Nb6 {[%emt 0:04:37]} Qd4 {[%emt 0:02:43]} 28. Nxd7 {[%emt 0:14:17]} Qxf2+ {[%emt 0:00:11]} 29. Kh1 {[%emt 0:00:04]} Qf3+ {[%emt 0:00:05]} 30. Kg1 {[%emt 0:01:30]} Qf2+ {[%emt 0:00:23]} 31. Kh1 {[%emt 0:00:01]} Qf3+ {[%emt 0:00:08]} 32. Kh2 {[%emt 0:00:22]} Qe2+ {[%emt 0:00:06]} 33. Kg1 {[%emt 0:01:00]} Qf2+ {[%emt 0:00:07]} 34. Kh1 {[%emt 0:00:06]} Qf3+ {[%emt 0:00:06]} 35. Kh2 {[%emt 0:00:13]} Qe2+ {[%emt 0:00:08]} 36. Kg1 {[%emt 0:00:06]} 1/2-1/2

[Event "44th Chess Olympiad Open 2022"]
[Site "Chennai"]
[Date "2022.08.09"]
[Round "11.47"]
[White "Poh, Yu Tian"]
[Black "Antoniou, Rafail"]
[Result "1-0"]
[ECO "B45"]
[WhiteElo "2118"]
[BlackElo "1817"]
[Annotator "NA RC"]
[PlyCount "81"]
[EventDate "2022.07.29"]
[EventType "team-tourn"]
[EventCountry "IND"]
[SourceTitle "playchess.com"]
[Source "ChessBase"]
[SourceQuality "1"]
[WhiteTeam "Malaysia"]
[BlackTeam "Cyprus"]
[WhiteTeamCountry "MAS"]
[BlackTeamCountry "CYP"]
[TimeControl "40/5400+30:1800+30"]

1. e4 {[%emt 0:00:02]} c5 {[%emt 0:00:15]} 2. Nf3 {[%emt 0:00:05]} e6 {[%emt 0:00:13]} 3. d4 {[%emt 0:00:03]} cxd4 {[%emt 0:00:09]} 4. Nxd4 {[%emt 0:00:03]} Nf6 {[%emt 0:00:38]} 5. Nc3 {[%emt 0:00:03]} Nc6 {[%emt 0:00:09]} 6. Ndb5 {[%emt 0:00:04]} Bb4 {[%emt 0:00:43]} 7. a3 {[%emt 0:00:03]} Bxc3+ {[%emt 0:00:07]} 8. Nxc3 {[%emt 0:00:03]} d5 {[%emt 0:00:02]} 9. exd5 {[%emt 0:00:05]} exd5 {[%emt 0:00:12]} 10. Bd3 {[%emt 0:00:03]} d4 {[%emt 0:01:47]} 11. Ne2 {[%emt 0:00:06]} O-O {[%emt 0:02:13]} 12. O-O {[%emt 0:00:10]} Bg4 {[%emt 0:00:13]} 13. Bg5 {[%emt 0:00:23]} Re8 {[%emt 0:01:13]} 14. f3 {[%emt 0:00:57]} Bh5 {[%emt 0:00:09]} 15. Kh1 {[%emt 0:05:05]} Bg6 {[%emt 0:03:49]} 16. Re1 {[%emt 0:08:49]} Bxd3 {[%emt 0:12:37]} 17. Qxd3 {[%emt 0:00:46]} h6 {[%emt 0:03:10]} 18. Bh4 {[%emt 0:05:55]} Rc8 {[%emt 0:05:44]} 19. Rad1 {[%emt 0:07:09]} Qd6 {[%emt 0:18:38]} 20. Bf2 {[%emt 0:02:31]} Qc7 {[%emt 0:07:02]} 21. Bxd4 {[%emt 0:01:52]} Ne5 {[%emt 0:03:18]} 22. Qc3 {[%emt 0:04:23]} Qe7 {[%emt 0:05:53]} 23. Qd2 {[%emt 0:02:02]} Nc4 {[%emt 0:00:54]} 24. Qc1 {[%emt 0:01:11]} Ne3 {[%emt 0:03:33]} 25. Nc3 {[%emt 0:02:10]} Nxd1 {[%emt 0:05:14]} 26. Rxe7 {[%emt 0:00:08]} Rxe7 {[%emt 0:00:14]} 27. Qxd1 {[%emt 0:00:21]} Rd8 {[%emt 0:00:31]} 28. Kg1 {[%emt 0:00:40]} Red7 {[%emt 0:00:42]} 29. Ne2 {[%emt 0:00:09]} Nd5 {[%emt 0:00:45]} 30. Kf2 {[%emt 0:00:30]} b6 {[%emt 0:00:44]} 31. c3 {[%emt 0:00:11]} Nc7 {[%emt 0:00:30]} 32. Qa4 {[%emt 0:00:29]} Ne6 {[%emt 0:00:22]} 33. Qb5 {[%emt 0:00:58]} Rd5 {[%emt 0:00:10]} 34. Qa6 {[%emt 0:00:33]} R8d7 {[%emt 0:00:26]} 35. a4 {[%emt 0:01:21]} Kh7 {[%emt 0:03:02]} 36. b4 {[%emt 0:01:03]} Rc7 {[%emt 0:01:42]} 37. Qd3+ {[%emt 0:00:35]} Kg8 {[%emt 0:00:07]} 38. Qe3 {[%emt 0:00:20]} Rc4 {[%emt 0:00:39]} 39. Nf4 {[%emt 0:00:27]} Nxf4 {[%emt 0:02:09]} 40. Qxf4 {[%emt 0:00:11]} Rd7 {[%emt 0:00:54]} 41. Qe5 {[%emt 0:30:18]} 1-0

[Event "44th Chess Olympiad Open 2022"]
[Site "Chennai"]
[Date "2022.08.09"]
[Round "11.47"]
[White "Florentiades, Michalis"]
[Black "Tan, Jun Ying"]
[Result "0-1"]
[ECO "A01"]
[WhiteElo "1974"]
[BlackElo "2191"]
[Annotator "RC"]
[PlyCount "68"]
[EventDate "2022.07.29"]
[EventType "team-tourn"]
[EventCountry "IND"]
[SourceTitle "playchess.com"]
[Source "ChessBase"]
[SourceQuality "1"]
[WhiteTeam "Cyprus"]
[BlackTeam "Malaysia"]
[WhiteTeamCountry "CYP"]
[BlackTeamCountry "MAS"]
[TimeControl "40/5400+30:1800+30"]

1. b3 {[%emt 0:00:11]} g6 {[%emt 0:00:38]} 2. Bb2 {[%emt 0:00:10]} Nf6 {[%emt 0:00:01]} 3. g3 {[%emt 0:00:49]} Bg7 {[%emt 0:00:13]} 4. Bg2 {[%emt 0:00:09]} d6 {[%emt 0:00:59]} 5. d4 {[%emt 0:01:37]} e5 {[%emt 0:02:58]} 6. dxe5 {[%emt 0:01:20]} Nfd7 {[%emt 0:00:19]} 7. Nf3 {[%emt 0:01:37]} dxe5 {[%emt 0:00:50]} 8. O-O {[%emt 0:04:23]} O-O {[%emt 0:00:28]} 9. Qc1 {[%emt 0:04:02]} e4 {[%emt 0:24:36]} 10. Nfd2 {[%emt 0:04:22]} Bxb2 {[%emt 0:05:42]} 11. Qxb2 {[%emt 0:00:09]} f5 {[%emt 0:00:26]} 12. e3 {[%emt 0:08:30]} Nf6 {[%emt 0:01:40]} 13. c4 {[%emt 0:03:08]} Nc6 {[%emt 0:01:56]} 14. a3 {[%emt 0:02:43]} Be6 {[%emt 0:02:15]} 15. Nc3 {[%emt 0:06:26]} Qe7 {[%emt 0:00:28]} 16. Rfd1 {[%emt 0:05:01]} Rad8 {[%emt 0:02:01]} 17. Bf1 {[%emt 0:02:19]} Ne5 {[%emt 0:02:58]} 18. Be2 {[%emt 0:00:57]} Nd3 {[%emt 0:01:24]} 19. Bxd3 {[%emt 0:01:03]} Rxd3 {[%emt 0:00:25]} 20. Nf1 {[%emt 0:01:53]} c6 {[%emt 0:12:49]} 21. Ne2 {[%emt 0:05:44]} Rfd8 {[%emt 0:03:15]} 22. Rxd3 {[%emt 0:01:14]} exd3 {[%emt 0:00:36]} 23. Nf4 {[%emt 0:04:07]} g5 {[%emt 0:01:04]} 24. Nxe6 {[%emt 0:04:09]} Qxe6 {[%emt 0:02:09]} 25. Rd1 {[%emt 0:04:02]} Ng4 {[%emt 0:03:22]} 26. Qc3 {[%emt 0:07:46]} Ne5 {[%emt 0:06:08]} 27. f4 {[%emt 0:05:50]} gxf4 {[%emt 0:03:14]} 28. gxf4 {[%emt 0:00:27]} Qg6+ {[%emt 0:00:37]} 29. Ng3 {[%emt 0:02:23]} Nf3+ {[%emt 0:01:11]} 30. Kg2 {[%emt 0:02:43]} Nh4+ {[%emt 0:04:20]} 31. Kg1 {[%emt 0:01:18]} d2 {[%emt 0:06:16]} 32. Qa5 {[%emt 0:03:10]} b6 {[%emt 0:01:22]} 33. Qxa7 {[%emt 0:00:23]} Qg4 {[%emt 0:00:24]} 34. Rxd2 {[%emt 0:00:18]} Nf3+ {[%emt 0:01:35]} 0-1